bitfinex-derivatives/quotes_BTCF0:USTF0_20250114
["timestamp","ask_amount","ask_price","bid_price","bid_amount"]
[1736837983003,0.052624,95064.0,95063.0,0.3608]
[1736837983205,0.085615,95082.0,95063.0,0.3608]
[1736837983505,0.085615,95082.0,95058.0,0.3608]
[1736837983506,0.052625,95063.0,95058.0,0.3608]
[1736837983700,0.052625,95063.0,95058.0,0.7216]
[1736837984105,0.052626,95062.0,95058.0,0.7216]
[1736837984900,0.052626,95062.0,95061.0,0.3608]
[1736837997907,0.085615,95082.0,95061.0,0.3608]
[1736837998105,0.052619,95072.0,95071.0,0.3608]
[1736837998512,0.28415303,95088.0,95072.0,0.052619]
[1736837998718,0.28415303,95088.0,95087.0,0.3608]
[1736837999314,0.33676403,95088.0,95087.0,0.3608]
[1736837999712,0.052611,95088.0,95087.0,0.3608]
[1736837999922,0.054611,95088.0,95087.0,0.3608]
[1736838000412,0.0927,95099.0,95090.0,0.052609]
[1736838000713,0.052605,95098.0,95090.0,0.052609]
[1736838001010,0.052605,95098.0,95097.0,0.3608]
[1736838001207,0.28415303,95111.0,95097.0,0.3608]
[1736838001409,0.28415303,95111.0,95105.0,0.3608]
[1736838001606,0.28415303,95111.0,95108.0,0.052599]
[1736838001914,0.31572558,95113.0,95105.0,0.3608]
[1736838001915,0.052601,95106.0,95105.0,0.3608]
[1736838002113,0.052603,95101.0,95097.0,0.3608]
[1736838002311,0.0983,95110.0,95097.0,0.3608]
[1736838002312,0.052605,95098.0,95097.0,0.3608]
[1736838002912,0.052605,95098.0,95097.0,0.37179528]
[1736838003519,0.052609,95091.0,95090.0,0.3608]
[1736838004410,0.3608,95096.0,95080.0,0.0699999]
[1736838004616,0.052617,95076.0,95075.0,0.3608]
[1736838005715,0.052617,95076.0,95075.0,0.37212528]
[1736838005917,0.3608,95096.0,95075.0,0.37212528]
[1736838006118,0.052611,95087.0,95086.0,0.0699999]
[1736838006419,0.052614,95083.0,95081.0,0.0639]
[1736838006614,0.052614,95083.0,95081.0,0.0319]
[1736838006817,0.052617,95076.0,95075.0,0.37912528]
[1736838007018,0.052617,95076.0,95075.0,0.01832528]
[1736838007617,0.052617,95076.0,95075.0,0.01432528]
[1736838008616,0.052617,95076.0,95075.0,0.01132528]
[1736838008819,0.36136001,95081.0,95066.0,0.0699999]
[1736838009114,0.052619,95072.0,95071.0,0.0699999]
[1736838009314,0.052623,95066.0,95065.0,0.0319]
[1736838009515,0.052623,95066.0,95065.0,0.04297714]
[1736838009915,0.052623,95066.0,95065.0,0.40377714]
[1736838010520,0.052617,95076.0,95065.0,0.40377714]
[1736838010721,0.3608,95089.0,95075.0,0.3608]
[1736838010722,0.052613,95083.0,95075.0,0.3608]
[1736838010920,0.052614,95082.0,95075.0,0.3608]
[1736838011659,0.052614,95082.0,95075.0,0.37205483]
[1736838012120,0.3608,95089.0,95075.0,0.37205483]
[1736838012319,0.3608,95089.0,95079.0,0.1399998]
[1736838012517,0.052614,95082.0,95080.0,0.0617]
[1736838012724,0.052614,95082.0,95081.0,0.032]
[1736838014317,0.052614,95082.0,95081.0,0.035]
[1736838014713,0.052614,95082.0,95081.0,0.032]
[1736838015027,0.052614,95082.0,95081.0,0.038]
[1736838015722,0.052614,95082.0,95081.0,0.036]
[1736838015923,0.052614,95082.0,95081.0,0.039]
[1736838021822,0.3608,95097.0,95081.0,0.039]
[1736838022018,0.3608,95097.0,95088.0,0.3608]
[1736838022414,0.05261,95090.0,95088.0,0.3608]
[1736838022623,0.36136001,95097.0,95089.0,0.001]
[1736838022926,0.413406,95097.0,95089.0,0.001]
[1736838025017,0.3608,95097.0,95088.0,0.3618]
[1736838025223,0.05261,95090.0,95088.0,0.37263651]
[1736838025526,0.05261,95090.0,95089.0,0.004]
[1736838026128,0.05261,95090.0,95088.0,0.01083651]
[1736838026323,0.05261,95090.0,95089.0,0.006]
[1736838027024,0.052605,95099.0,95089.0,0.006]
[1736838027216,0.052605,95099.0,95089.0,0.1459998]
[1736838027719,0.052605,95098.0,95089.0,0.1459998]
[1736838027920,0.052605,95098.0,95089.0,0.006]
[1736838028121,0.052605,95098.0,95089.0,0.01]
[1736838028922,0.052606,95097.0,95089.0,0.01]
[1736838029124,0.3608,95108.0,95089.0,0.01]
[1736838029328,0.3608,95108.0,95090.0,0.10625492]
[1736838029528,0.052609,95091.0,95090.0,0.10625492]
[1736838029727,0.052609,95091.0,95089.0,0.01]
[1736838029930,0.052609,95091.0,95089.0,0.004]
[1736838030231,0.052609,95091.0,95089.0,0.01]
[1736838030624,0.052609,95091.0,95090.0,0.005]
[1736838031129,0.052609,95091.0,95089.0,0.004]
[1736838031130,0.052609,95091.0,95089.0,0.01]
[1736838032725,0.052609,95091.0,95090.0,0.005]
[1736838033328,0.052609,95091.0,95089.0,0.01]
[1736838033931,0.052609,95091.0,95090.0,0.005]
[1736838034938,0.052609,95091.0,95090.0,0.008]
[1736838035529,0.052609,95091.0,95090.0,0.003]
[1736838036638,0.3608,95108.0,95090.0,0.008]
[1736838036831,0.3608,95108.0,95098.0,0.10625492]
[1736838037033,0.052608,95092.0,95090.0,0.11425492]
[1736838037233,0.052608,95092.0,95090.0,0.008]
[1736838037932,0.052608,95092.0,95090.0,0.005]
[1736838038137,0.052608,95092.0,95090.0,0.008]
[1736838042033,0.3608,95108.0,95090.0,0.008]
[1736838042240,0.052604,95099.0,95098.0,0.10625492]
[1736838042437,0.052604,95099.0,95090.0,0.008]
[1736838042639,0.3608,95108.0,95090.0,0.008]
[1736838043238,0.052605,95098.0,95090.0,0.008]
[1736838043439,0.3608,95108.0,95090.0,0.003]
[1736838043440,0.052605,95097.0,95090.0,0.003]
[1736838044032,0.3608,95108.0,95090.0,0.003]
[1736838044442,0.052606,95095.0,95090.0,0.52152]
[1736838044832,0.052607,95094.0,95090.0,0.52152]
[1736838045032,0.052607,95094.0,95090.0,0.52652]
[1736838046439,0.0228993,95101.0,95095.0,0.052606]
[1736838046740,0.3608,95116.0,95101.0,0.052603]
[1736838046933,0.3608,95116.0,95107.0,0.3608]
[1736838047438,0.0526,95107.0,95106.0,0.10625492]
[1736838047638,0.0526,95106.0,95102.0,0.0305]
[1736838048541,0.052602,95103.0,95102.0,0.0305]
[1736838049435,0.052602,95103.0,95102.0,0.0417007]
[1736838050629,0.052602,95103.0,95102.0,0.0427007]
[1736838052142,0.3608,95116.0,95102.0,0.0427007]
[1736838052343,0.052599,95109.0,95108.0,0.3608]
[1736838054842,0.053599,95109.0,95108.0,0.3608]
[1736838065941,0.001,95109.0,95108.0,0.413399]
[1736838067661,0.3608,95123.0,95108.0,0.3608]
[1736838067861,0.052595,95116.0,95113.0,0.13940474]
[1736838068056,0.41395101,95123.0,95112.0,0.052597]
[1736838068362,0.413391,95123.0,95113.0,0.06970237]
[1736838068558,0.052596,95114.0,95113.0,0.06970237]
[1736838068752,0.052596,95114.0,95112.0,0.052597]
[1736838070564,0.052591,95124.0,95122.0,0.052591]
[1736838070868,0.05259,95125.0,95123.0,0.082991]
[1736838071163,0.05259,95124.0,95123.0,0.0304]
[1736838071662,0.0015773,95129.0,95123.0,0.0304]
[1736838071858,0.0015773,95129.0,95126.0,0.052589]
[1736838071859,0.0541653,95129.0,95126.0,0.052589]
[1736838072266,0.052588,95128.0,95126.0,0.052589]
[1736838072657,0.0015773,95129.0,95126.0,0.052589]
[1736838072862,0.052589,95127.0,95126.0,0.052589]
[1736838074755,0.052589,95127.0,95126.0,0.053589]
[1736838075254,0.052589,95127.0,95126.0,0.001]
[1736838075954,0.05259,95125.0,95123.0,0.09376223]
[1736838076457,0.05259,95124.0,95123.0,0.04117123]
[1736838076667,0.05259,95124.0,95123.0,0.01077123]
[1736838076872,0.05259,95124.0,95122.0,0.3608]
[1736838076873,0.052591,95123.0,95122.0,0.3608]
[1736838078068,0.052591,95123.0,95122.0,0.37173474]
[1736838078978,0.052591,95123.0,95122.0,0.37273474]
[1736838079675,0.052591,95123.0,95122.0,0.01193474]
[1736838079871,0.052591,95123.0,95110.0,0.3608]
[1736838079872,0.052597,95111.0,95110.0,0.3608]
[1736838080071,0.0526,95106.0,95100.0,0.35778614]
[1736838080260,0.052602,95103.0,95102.0,0.18871215]
[1736838080669,0.052602,95103.0,95102.0,0.19943581]
[1736838081875,0.052602,95103.0,95102.0,0.01072366]
[1736838082077,0.0472,95122.0,95095.0,0.0647]
[1736838082266,0.052596,95114.0,95113.0,0.3608]
[1736838082468,0.052596,95114.0,95113.0,0.3918]
[1736838083871,0.052596,95114.0,95113.0,0.031]
[1736838084476,0.052603,95101.0,95100.0,0.10616994]
[1736838084669,0.052603,95100.0,95099.0,0.3618]
[1736838084977,0.052603,95100.0,95099.0,0.3608]
[1736838085178,0.3608,95104.0,95097.0,0.031]
[1736838085369,0.052605,95098.0,95097.0,0.031]
[1736838085973,0.052605,95098.0,95097.0,0.04163902]
[1736838087972,0.052605,95098.0,95097.0,0.04363902]
[1736838088172,0.052605,95098.0,95097.0,0.04563902]
[1736838089278,0.052605,95098.0,95097.0,0.04763902]
[1736838098284,0.052605,95098.0,95097.0,0.037]
[1736838098478,0.052605,95098.0,95085.0,0.5194]
[1736838098479,0.052608,95092.0,95085.0,0.5194]
[1736838098677,0.052611,95086.0,95085.0,0.5184]
[1736838099187,0.052611,95086.0,95085.0,0.52938963]
[1736838099478,0.052613,95082.0,95081.0,0.0305]
[1736838099684,0.052615,95079.0,95069.0,0.0319]
[1736838099984,0.052615,95079.0,95074.0,0.01094392]
[1736838100979,0.052615,95079.0,95078.0,0.3638]
[1736838102384,0.052615,95079.0,95078.0,0.3678]
[1736838105178,0.052615,95079.0,95078.0,0.007]
[1736838108186,0.052615,95079.0,95069.0,0.0322]
[1736838108187,0.05262,95070.0,95069.0,0.0322]
[1736838109386,0.05262,95070.0,95069.0,0.0402]
[1736838109588,0.05262,95070.0,95069.0,0.0442]
[1736838111694,0.05262,95070.0,95069.0,0.012]
[1736838115986,0.05262,95070.0,95069.0,1e-06]
[1736838131194,0.05262,95070.0,95069.0,0.01107635]
[1736838131395,0.05262,95070.0,95069.0,0.06369535]
[1736838132303,0.3608,95082.0,95069.0,0.01207635]
[1736838132606,0.05262,95070.0,95069.0,0.58337635]
[1736838133502,0.05262,95070.0,95069.0,0.59037635]
[1736838133900,0.053613,95082.0,95069.0,0.53775635]
[1736838134102,0.052615,95079.0,95078.0,0.3608]
[1736838135207,0.052615,95079.0,95078.0,0.3628]
[1736838135801,0.052615,95079.0,95078.0,0.3658]
[1736838147518,0.05261,95082.0,95081.0,0.05261]
[1736838148423,0.052607,95088.0,95084.0,0.052608]
[1736838148621,0.052607,95088.0,95087.0,0.3608]
[1736838149024,0.052607,95088.0,95087.0,0.413407]
[1736838149326,0.052604,95092.0,95090.0,0.052605]
[1736838149721,0.052605,95091.0,95090.0,0.052605]
[1736838150323,0.0326,95098.0,95087.0,0.3638]
[1736838150516,0.085201,95098.0,95097.0,0.3608]
[1736838150719,0.00056001,95109.0,95097.0,0.3608]
[1736838150924,0.052595,95109.0,95108.0,0.3608]
[1736838152218,0.052595,95109.0,95108.0,0.37178993]
[1736838152634,0.059595,95109.0,95108.0,0.37278993]
[1736838153323,0.056595,95109.0,95108.0,0.37178993]
[1736838153822,0.057595,95109.0,95108.0,0.37178993]
[1736838154331,0.056595,95109.0,95108.0,0.37178993]
[1736838154524,0.057595,95109.0,95108.0,0.37178993]
[1736838185150,0.057595,95109.0,95108.0,0.42438493]
[1736838185845,0.057595,95109.0,95108.0,0.37178993]
[1736838188954,0.053595,95109.0,95108.0,0.37178993]
[1736838189254,0.053595,95109.0,95108.0,0.37278993]
[1736838189457,0.052595,95109.0,95108.0,0.37378993]
[1736838190160,0.052595,95109.0,95108.0,0.37178993]
[1736838190451,0.052595,95109.0,95108.0,0.37378993]
[1736838203560,0.052595,95109.0,95108.0,0.002]
[1736838211455,0.052595,95109.0,95051.0,0.01376647]
[1736838211456,0.052604,95092.0,95091.0,0.01082293]
[1736838211661,0.052606,95089.0,95087.0,0.3608]
[1736838213067,0.053606,95089.0,95088.0,0.04988141]
[1736838214967,0.053606,95089.0,95088.0,0.05488141]
[1736838215266,0.053606,95089.0,95088.0,0.02448141]
[1736838215765,0.053606,95089.0,95088.0,0.014]
[1736838225976,0.052611,95080.0,95079.0,0.51948]
[1736838226271,0.413411,95080.0,95074.0,0.0319]
[1736838226774,0.0311,95079.0,95074.0,0.0319]
[1736838226986,0.052612,95078.0,95063.0,0.3608]
[1736838227282,0.052617,95069.0,95063.0,0.3608]
[1736838227770,0.052617,95069.0,95066.0,0.01067628]
[1736838228373,0.052617,95069.0,95068.0,0.0393]
[1736838228971,0.053617,95069.0,95068.0,0.0393]
[1736838229979,0.054617,95069.0,95068.0,0.0433]
[1736838244988,0.26178056,95099.0,95068.0,0.0433]
[1736838245188,0.05418294,95091.0,95090.0,0.3608]
[1736838245376,0.01082499,95105.0,95090.0,0.3608]
[1736838245576,0.052597,95105.0,95104.0,0.3608]
[1736838247681,0.052597,95105.0,95104.0,0.3628]
[1736838247887,0.052597,95105.0,95104.0,0.3648]
[1736838249085,0.052597,95105.0,95104.0,0.37559214]
[1736838264720,0.052597,95105.0,95104.0,0.3648]
[1736838271010,0.052597,95105.0,95104.0,0.417397]
[1736838272523,0.00157743,95125.0,95104.0,0.3648]
[1736838272726,0.052587,95122.0,95115.0,0.06972989]
[1736838272923,0.052591,95116.0,95115.0,0.06972989]
[1736838273226,0.052591,95115.0,95114.0,0.3608]
[1736838274526,0.055591,95115.0,95114.0,0.3608]
[1736838275523,0.003,95115.0,95114.0,0.413392]
[1736838275829,0.003,95115.0,95114.0,0.414392]
[1736838276028,0.003,95115.0,95114.0,0.42512811]
[1736838276223,0.03129908,95123.0,95121.0,0.052588]
[1736838276426,0.052583,95130.0,95124.0,0.052586]
[1736838276621,0.00157729,95135.0,95129.0,0.3608]
[1736838276828,0.00157729,95135.0,95134.0,0.3608]
[1736838278228,0.01057729,95135.0,95134.0,0.3608]
[1736838278437,0.01057729,95135.0,95134.0,0.37121328]
[1736838279332,0.01357729,95135.0,95134.0,0.37121328]
[1736838280230,0.01357729,95135.0,95134.0,0.37221328]
[1736838282831,0.01357729,95135.0,95134.0,0.73301328]
[1736838287433,0.06615729,95135.0,95134.0,0.73301328]
[1736838292456,0.01357729,95135.0,95134.0,0.78559428]
[1736838292758,0.3608,95160.0,95144.0,0.052575]
[1736838292759,0.052574,95147.0,95144.0,0.052575]
[1736838292953,0.052574,95147.0,95146.0,0.3608]
[1736838293151,0.0301,95164.0,95146.0,0.3608]
[1736838293357,0.052569,95155.0,95154.0,0.3608]
[1736838294752,0.00157668,95171.0,95154.0,0.3608]
[1736838294963,0.05413668,95171.0,95170.0,0.3608]
[1736838296664,0.06313668,95171.0,95170.0,0.3618]
[1736838296961,0.06513668,95171.0,95170.0,0.3618]
[1736838297361,0.06513668,95171.0,95170.0,0.001]
[1736838299351,0.01257668,95171.0,95154.0,0.3608]
[1736838299666,0.052569,95155.0,95154.0,0.3608]
[1736838299964,0.052569,95155.0,95154.0,0.37155042]
[1736838300354,0.052569,95155.0,95154.0,0.01075042]
[1736838300563,0.052572,95150.0,95142.0,0.5664]
[1736838301257,0.052572,95150.0,95144.0,0.052575]
[1736838301563,0.052572,95150.0,95145.0,0.052574]
[1736838302556,0.052572,95150.0,95142.0,0.5664]
[1736838302865,0.052572,95150.0,95149.0,0.3618]
[1736838313375,0.052572,95150.0,95149.0,0.001]
[1736838315066,0.052572,95150.0,95149.0,0.053572]
[1736838315465,0.052561,95169.0,95149.0,0.001]
[1736838315670,0.052571,95152.0,95151.0,0.052571]
[1736838315876,0.052571,95152.0,95151.0,0.413371]
[1736838316477,0.052568,95158.0,95155.0,0.052569]
[1736838316779,0.052568,95158.0,95157.0,0.3608]
[1736838317570,0.052568,95158.0,95157.0,0.413368]
[1736838317770,0.052563,95167.0,95166.0,0.052563]
[1736838317971,0.00157651,95172.0,95166.0,0.3608]
[1736838318180,0.05256,95172.0,95168.0,0.3608]
[1736838318681,0.05256,95172.0,95169.0,0.0329]
[1736838318978,0.05256,95172.0,95171.0,0.05256]
[1736838319274,0.052556,95178.0,95176.0,0.052557]
[1736838319471,0.052556,95178.0,95177.0,0.3936]
[1736838320481,0.061556,95178.0,95177.0,0.3936]
[1736838321179,0.061556,95178.0,95177.0,1.011437]
[1736838321577,0.064556,95178.0,95177.0,1.011437]
[1736838321984,0.055556,95178.0,95177.0,1.011437]
[1736838322182,0.064556,95178.0,95177.0,1.012437]
[1736838322573,0.064556,95178.0,95177.0,0.95988]
[1736838322768,0.05255,95190.0,95177.0,1.02310416]
[1736838322973,0.052546,95197.0,95189.0,0.3608]
[1736838323172,0.052546,95197.0,95190.0,0.3608]
[1736838323373,0.052549,95191.0,95190.0,0.3608]
[1736838326077,0.054549,95191.0,95190.0,0.3608]
[1736838327179,0.00157618,95198.0,95190.0,0.41435]
[1736838327379,0.00157618,95198.0,95197.0,0.052546]
[1736838328675,0.00157618,95198.0,95197.0,0.06336723]
[1736838329078,0.03716509,95200.0,95199.0,0.052545]
[1736838329276,0.03716509,95200.0,95199.0,0.413345]
[1736838330482,0.08970909,95200.0,95199.0,0.413345]
[1736838331379,0.03716509,95200.0,95198.0,0.0321]
[1736838331679,0.052545,95199.0,95198.0,0.0321]
[1736838332378,0.052545,95199.0,95198.0,0.0331]
[1736838332585,0.052545,95199.0,95198.0,0.3628]
[1736838332979,0.052545,95199.0,95198.0,0.002]
[1736838333486,0.052545,95199.0,95198.0,0.001]
[1736838333678,0.052545,95199.0,95198.0,0.002]
[1736838334080,0.052545,95199.0,95198.0,0.3628]
[1736838334586,0.052545,95199.0,95198.0,0.3618]
[1736838334774,0.052545,95199.0,95198.0,0.3628]
[1736838337985,0.052545,95199.0,95198.0,0.002]
[1736838339593,0.052551,95188.0,95180.0,0.10618526]
[1736838339805,0.052555,95181.0,95180.0,0.10618526]
[1736838340383,0.052555,95181.0,95177.0,0.57662643]
[1736838340384,0.052556,95178.0,95177.0,0.57662643]
[1736838340593,0.052556,95178.0,95177.0,0.57562643]
[1736838341783,0.052556,95178.0,95177.0,0.56928]
[1736838342986,0.052556,95178.0,95177.0,0.57828]
[1736838344189,0.052556,95178.0,95177.0,0.94008]
[1736838344387,0.052556,95178.0,95177.0,0.95089073]
[1736838344693,0.052556,95178.0,95177.0,0.94989073]
[1736838348490,0.052556,95178.0,95177.0,1.00244773]
[1736838350299,0.052556,95178.0,95177.0,0.94989073]
[1736838360997,0.0001296,95181.0,95177.0,0.94989073]
[1736838360998,0.052549,95191.0,95177.0,0.94989073]
[1736838361204,0.052549,95191.0,95190.0,0.3608]
[1736838363104,0.052549,95191.0,95190.0,0.3638]
[1736838363399,0.052549,95191.0,95190.0,0.3658]
[1736838364698,0.052549,95191.0,95190.0,0.37651285]
[1736838366302,0.00157619,95201.0,95194.0,0.052547]
[1736838366500,0.00157619,95201.0,95195.0,0.0627]
[1736838367703,0.052547,95196.0,95195.0,0.0627]
[1736838368401,0.052547,95196.0,95195.0,0.0306]
[1736838368797,0.00157619,95201.0,95194.0,0.001]
[1736838368997,0.052547,95195.0,95194.0,0.001]
[1736838369708,0.052549,95191.0,95190.0,0.37151285]
[1736838372007,0.00157619,95201.0,95190.0,0.37151285]
[1736838372309,0.05412019,95201.0,95199.0,0.413345]
[1736838373906,0.03816509,95200.0,95199.0,0.413345]
[1736838374895,0.09070909,95200.0,95199.0,0.413345]
[1736838382607,0.03816509,95200.0,95199.0,0.414345]
[1736838382807,0.05254,95207.0,95206.0,0.052541]
[1736838383304,0.05254,95207.0,95206.0,0.053541]
[1736838383913,0.052539,95210.0,95208.0,0.052539]
[1736838384215,0.052539,95210.0,95209.0,0.3618]
[1736838385806,0.052537,95214.0,95213.0,0.052537]
[1736838387516,0.054536,95214.0,95213.0,0.01052025]
[1736838387716,0.002,95214.0,95209.0,0.3618]
[1736838388017,0.002,95214.0,95209.0,0.414339]
[1736838388018,0.052539,95210.0,95209.0,0.414339]
[1736838389019,0.052539,95210.0,95209.0,0.053539]
[1736838389221,0.052539,95210.0,95209.0,0.414339]
[1736838389513,0.052539,95210.0,95209.0,0.3618]
[1736838389706,0.052539,95210.0,95209.0,0.37135614]
[1736838390311,0.053539,95210.0,95209.0,0.37135614]
[1736838390615,0.054539,95210.0,95209.0,0.37135614]
[1736838395822,0.053539,95210.0,95209.0,0.37135614]
[1736838423041,0.053539,95210.0,95209.0,0.42389514]
[1736838423642,0.053539,95210.0,95209.0,0.37135614]
[1736838424550,0.053539,95210.0,95209.0,0.42389514]
[1736838429247,0.001,95210.0,95209.0,0.42389514]
[1736838430254,0.033538,95212.0,95209.0,0.37135614]
[1736838430458,0.033538,95212.0,95211.0,0.052538]
[1736838431751,0.034538,95212.0,95211.0,0.052538]
[1736838434549,0.034538,95212.0,95211.0,0.774138]
[1736838438648,0.034538,95212.0,95211.0,0.052538]
[1736838438858,0.034538,95212.0,95211.0,0.774138]
[1736838441855,0.034538,95212.0,95211.0,0.7216]
[1736838452266,0.034538,95212.0,95211.0,0.774138]
[1736838452466,0.00157567,95230.0,95211.0,0.7216]
[1736838452666,0.052528,95229.0,95228.0,0.3608]
[1736838453965,0.052528,95229.0,95228.0,0.001]
[1736838455666,0.055528,95229.0,95228.0,0.001]
[1736838456074,0.052533,95220.0,95211.0,0.3608]
[1736838456363,0.052538,95212.0,95211.0,0.3608]
[1736838464974,0.085034,95219.0,95209.0,0.0326]
[1736838464975,0.052539,95210.0,95209.0,0.0326]
[1736838473282,0.07113788,95230.0,95209.0,0.0326]
[1736838473474,0.052535,95216.0,95215.0,0.3608]
[1736838475778,0.053535,95216.0,95215.0,0.3608]
[1736838488089,0.052535,95216.0,95215.0,0.3608]
[1736838489282,0.052535,95216.0,95204.0,0.3608]
[1736838489283,0.052541,95205.0,95204.0,0.3608]
[1736838491495,0.052541,95205.0,95204.0,0.3648]
[1736838495099,0.052541,95205.0,95204.0,0.004]
[1736838495295,0.05255,95190.0,95189.0,0.00157567]
[1736838495700,0.05255,95190.0,95189.0,0.05412567]
[1736838497000,0.05255,95190.0,95189.0,0.06112567]
[1736838497197,0.05255,95190.0,95189.0,0.00857567]
[1736838497996,0.05255,95190.0,95189.0,0.01157567]
[1736838499696,0.05255,95190.0,95189.0,0.37237567]
[1736838505307,0.05255,95190.0,95189.0,0.42492567]
[1736838510612,0.052544,95200.0,95198.0,0.052545]
[1736838510811,0.052544,95200.0,95199.0,0.4261]
[1736838512401,0.052544,95200.0,95199.0,0.4291]
[1736838513103,0.052544,95200.0,95199.0,0.4301]
[1736838514217,0.052544,95200.0,95199.0,0.4321]
[1736838514812,0.052544,95200.0,95199.0,0.3993]
[1736838516914,0.052544,95200.0,95199.0,0.40998191]
[1736838521808,0.052544,95200.0,95199.0,0.37748191]
[1736838522810,0.052544,95200.0,95199.0,0.006]
[1736838524604,0.052544,95200.0,95199.0,0.002]
[1736838524811,0.052544,95200.0,95199.0,0.006]
[1736838529817,0.05255,95190.0,95179.0,0.55077845]
[1736838530125,0.052555,95180.0,95179.0,0.18997845]
[1736838530617,0.052555,95180.0,95179.0,0.00157581]
[1736838531219,0.052555,95180.0,95179.0,0.00657581]
[1736838531612,0.052555,95180.0,95179.0,0.01557581]
[1736838532412,0.052555,95180.0,95179.0,0.02604355]
[1736838537918,0.052555,95180.0,95179.0,0.02446774]
[1736838541425,0.052555,95180.0,95179.0,0.014]
[1736838553241,0.052561,95170.0,95169.0,0.0305]
[1736838553647,0.052561,95170.0,95169.0,0.04113694]
[1736838554736,0.053561,95170.0,95169.0,0.05613694]
[1736838567049,0.001,95170.0,95169.0,0.10869794]
[1736838567346,0.052559,95174.0,95173.0,0.052559]
[1736838567554,0.052561,95170.0,95169.0,0.05713694]
[1736838567949,0.052561,95170.0,95169.0,0.10969794]
[1736838568248,0.052561,95170.0,95169.0,0.36014923]
[1736838568549,0.052561,95170.0,95169.0,0.35414923]
[1736838569449,0.053561,95170.0,95169.0,0.10869794]
[1736838573454,0.053561,95170.0,95169.0,0.098061]
[1736838574058,0.053561,95170.0,95169.0,0.0455]
[1736838581160,0.053561,95170.0,95169.0,0.098061]
[1736838581454,0.052558,95176.0,95175.0,0.052557]
[1736838583562,0.052558,95176.0,95175.0,0.057557]
[1736838583765,0.052558,95176.0,95175.0,0.066557]
[1736838583962,0.053558,95176.0,95175.0,0.066557]
[1736838584656,0.001,95176.0,95175.0,0.066557]
[1736838588256,0.00157645,95190.0,95175.0,0.066557]
[1736838588257,0.00157645,95190.0,95175.0,0.427357]
[1736838588463,0.052553,95184.0,95183.0,0.052553]
[1736838588665,0.052553,95184.0,95183.0,0.413353]
[1736838589869,0.053553,95184.0,95183.0,0.422353]
[1736838590770,0.053553,95184.0,95183.0,0.426353]
[1736838597175,0.053553,95184.0,95183.0,0.065553]
[1736838597370,0.053553,95184.0,95183.0,0.426353]
[1736838599172,0.053553,95184.0,95183.0,0.3738]
[1736838604375,0.053553,95184.0,95183.0,0.426354]
[1736838604878,0.00157645,95190.0,95183.0,0.426354]
[1736838604879,0.052552,95186.0,95185.0,0.052551]
[1736838606073,0.052552,95186.0,95185.0,0.24018857]
[1736838606274,0.052552,95186.0,95185.0,0.24418857]
[1736838606980,0.052552,95186.0,95185.0,0.056551]
[1736838607581,0.00157645,95190.0,95189.0,0.05255]
[1736838607777,0.05255,95191.0,95189.0,0.05255]
[1736838608083,0.052547,95195.0,95194.0,0.052547]
[1736838608376,0.0634,95202.0,95188.0,0.3608]
[1736838608580,0.052543,95202.0,95201.0,0.052544]
[1736838610672,0.052543,95202.0,95201.0,0.053544]
[1736838611881,0.052543,95202.0,95201.0,0.054544]
[1736838615278,0.052543,95202.0,95201.0,0.002]
[1736838627687,0.052539,95209.0,95208.0,0.05254]
[1736838630388,0.054539,95209.0,95208.0,0.05254]
[1736838635497,0.054539,95209.0,95202.0,0.0958]
[1736838635693,0.052544,95201.0,95200.0,0.3608]
[1736838637196,0.052544,95201.0,95200.0,0.3628]
[1736838638594,0.052544,95201.0,95200.0,0.3638]
[1736838652406,0.052544,95201.0,95200.0,0.003]
[1736838667419,0.052544,95201.0,95181.0,0.3927]
[1736838667420,0.052554,95182.0,95181.0,0.3927]
[1736838668519,0.052554,95182.0,95181.0,0.3967]
[1736838668716,0.053554,95182.0,95181.0,0.4057]
[1736838669015,0.053554,95182.0,95181.0,0.0449]
[1736838669217,0.053554,95182.0,95181.0,0.013]
[1736838688131,0.053554,95182.0,95167.0,0.0331]
[1736838688325,0.052562,95168.0,95167.0,0.0331]
[1736838689338,0.052562,95168.0,95167.0,0.0491]
[1736838690031,0.052562,95168.0,95167.0,0.0421]
[1736838690237,0.052562,95168.0,95167.0,0.0471]
[1736838691438,0.053562,95168.0,95167.0,0.0471]
[1736838691931,0.052562,95168.0,95167.0,0.0381]
[1736838692134,0.053562,95168.0,95167.0,0.0471]
[1736838705643,0.052554,95182.0,95167.0,0.099662]
[1736838705845,0.052557,95176.0,95175.0,0.3608]
[1736838708447,0.053557,95176.0,95175.0,0.3688]
[1736838709244,0.053557,95176.0,95175.0,0.3718]
[1736838711555,0.053557,95176.0,95175.0,0.424358]
[1736838722164,0.053557,95176.0,95175.0,0.3718]
[1736838731563,0.053557,95176.0,95175.0,0.011]
[1736838732475,0.001,95176.0,95168.0,0.18763757]
[1736838732668,0.052561,95169.0,95168.0,0.18763757]
[1736838733064,0.052561,95169.0,95165.0,0.56616]
[1736838733270,0.052563,95166.0,95165.0,0.56516]
[1736838735576,0.053563,95166.0,95165.0,0.57016]
[1736838735777,0.054563,95166.0,95165.0,0.007]
[1736838738681,0.415363,95166.0,95165.0,0.007]
[1736838738885,0.052574,95146.0,95145.0,0.18763757]
[1736838739277,0.052575,95144.0,95143.0,0.01257731]
[1736838740882,0.053575,95144.0,95143.0,0.01457731]
[1736838741304,0.050575,95144.0,95143.0,0.01457731]
[1736838741999,0.051575,95144.0,95143.0,0.01757731]
[1736838744096,0.051575,95144.0,95143.0,0.005]
[1736838748699,0.051575,95144.0,95130.0,0.00157649]
[1736838748700,0.002,95144.0,95130.0,0.00157649]